bitfinex-derivatives/quotes_SOLF0:USTF0_20250816
["timestamp","ask_amount","ask_price","bid_price","bid_amount"]
[1755310686038,2.91,187.78,187.77,2.98]
[1755310686840,2.91,187.78,187.72,2.98]
[1755310688141,2.91,187.79,187.73,2.98]
[1755310688445,2.91,187.79,187.74,5.3221]
[1755310688645,2.52161406,187.83,187.75,2.98]
[1755310688943,2.91,187.78,187.75,2.98]
[1755310689147,2.91,187.78,187.76,2.98]
[1755310689445,2.52161406,187.83,187.76,2.98]
[1755310689744,2.91,187.78,187.76,2.98]
[1755310689945,2.91,187.78,187.77,2.98]
[1755310691142,2.91,187.78,187.76,2.98]
[1755310692048,2.91,187.77,187.76,2.98]
[1755310694049,2.91,187.82,187.73,2.98]
[1755310694245,2.91,187.8,187.75,2.98]
[1755310694445,130.72,187.84,187.75,2.52161406]
[1755310694749,2.91,187.82,187.76,2.98]
[1755310695155,4.15081694,187.81,187.76,2.98]
[1755310695453,2.91,187.83,187.76,2.98]
[1755310695643,130.72,187.84,187.76,2.98]
[1755310695644,7.06119295,187.82,187.76,2.98]
[1755310695841,2.91,187.81,187.76,2.98]
[1755310696041,130.72,187.84,187.68,99.0]
[1755310696042,2.91,187.82,187.79,2.98]
[1755310696444,130.72,187.84,187.79,2.98]
[1755310696645,4.14965208,187.83,187.79,2.98]
[1755310696841,2.91,187.83,187.79,2.98]
[1755310697753,2.91,187.85,187.8,2.98]
[1755310697955,4.15045748,187.84,187.8,2.98]
[1755310698159,2.91,187.84,187.8,2.98]
[1755310698558,2.87,187.83,187.8,2.98]
[1755310699551,2.87,187.85,187.8,5.3205]
[1755310699753,0.92664093,187.89,187.68,99.0]
[1755310699754,2.87,187.87,187.81,5.64161406]
[1755310700057,7.02212369,187.86,187.82,3.12]
[1755310700357,7.02212369,187.85,187.82,3.12]
[1755310700554,2.87,187.85,187.82,3.12]
[1755310701151,2.87,187.89,187.82,3.12]
[1755310701353,2.87,187.87,187.82,3.12]
[1755310701552,4.15442937,187.86,187.83,3.12]
[1755310701752,4.46438406,187.9,187.83,3.12]
[1755310701951,2.87,187.84,187.83,3.12]
[1755310702557,2.87,187.86,187.83,3.12]
[1755310703056,2.87,187.85,187.83,3.12]
[1755310704856,135.18438406,187.91,187.83,3.12]
[1755310705053,2.87,187.89,187.83,3.12]
[1755310705260,2.87,187.87,187.83,3.12]
[1755310705865,2.87,187.86,187.83,3.12]
[1755310706558,2.87,187.9,187.84,3.12]
[1755310706749,2.87,187.88,187.84,3.12]
[1755310707260,2.87,187.88,187.85,3.12]
[1755310707659,2.87,187.87,187.85,3.12]
[1755310708060,2.87,187.87,187.85,8.4391]
[1755310708360,2.87,187.87,187.86,3.12]
[1755310708561,130.72,187.91,187.86,3.12]
[1755310708764,7.02740338,187.9,187.86,3.12]
[1755310708962,2.87,187.89,187.86,3.12]
[1755310709959,2.87,187.93,187.86,3.12]
[1755310710163,2.87,187.91,187.86,3.12]
[1755310711263,2.87,187.91,187.87,3.12]
[1755310711864,2.87,187.91,187.85,3.12]
[1755310712064,2.87,187.91,187.75,109.6439]
[1755310712065,2.87,187.89,187.83,3.12]
[1755310718868,2.87,187.89,187.84,3.12]
[1755310723567,130.64,187.9,187.75,99.0]
[1755310723767,2.87,187.88,187.8,3.12]
[1755310725166,2.87,187.88,187.8,8.4404]
[1755310725361,2.87,187.88,187.79,2.52161406]
[1755310725362,2.87,187.88,187.81,3.12]
[1755310726061,2.87,187.88,187.82,3.12]
[1755310728375,2.87,187.88,187.83,3.01]
[1755310728973,2.87,187.88,187.86,3.01]
[1755310732475,2.87,187.88,187.83,3.01]
[1755310732675,133.52,187.9,187.85,2.52161406]
[1755310732877,2.88,187.89,187.86,3.01]
[1755310733072,2.88,187.89,187.87,5.3186]
[1755310733279,2.88,187.89,187.88,3.01]
[1755310733475,2.88,187.92,187.86,3.01]
[1755310733678,2.88,187.9,187.79,2.52161406]
[1755310733879,2.88,187.88,187.8,3.01]
[1755310734077,2.88,187.86,187.8,3.01]
[1755310734879,130.6,187.88,187.81,5.32]
[1755310735076,2.88,187.85,187.82,3.01]
[1755310735780,2.88,187.87,187.81,3.01]
[1755310739081,4.16025322,187.86,187.81,3.01]
[1755310739283,2.88,187.85,187.81,3.01]
[1755310740176,2.88,187.85,187.81,8.3303]
[1755310740385,2.88,187.87,187.82,3.01]
[1755310741281,2.88,187.86,187.82,8.3299]
[1755310741480,2.88,187.86,187.83,3.01]
[1755310741972,2.88,187.86,187.84,3.01]
[1755310742171,2.88,187.86,187.85,3.01]
[1755310748084,2.88,187.86,187.81,2.52161406]
[1755310748285,2.88,187.86,187.82,3.01]
[1755310748484,2.88,187.86,187.83,3.01]
[1755310748685,2.88,187.86,187.82,3.01]
[1755310748886,2.88,187.89,187.82,3.01]
[1755310749085,2.88,187.87,187.82,3.01]
[1755310749388,2.88,187.85,187.83,3.01]
[1755310750085,2.88,187.86,187.81,2.52161406]
[1755310750289,4.46789061,187.9,187.81,2.52161406]
[1755310750484,2.88,187.88,187.81,2.52161406]
[1755310750685,2.88,187.91,187.85,3.01]
[1755310750887,4.18037183,187.9,187.88,3.01]
[1755310751085,2.88,187.91,187.88,3.01]
[1755310751683,2.88,187.92,187.88,3.01]
[1755310751882,7.04284538,187.91,187.88,3.01]
[1755310752084,4.46789061,187.95,187.88,3.01]
[1755310752280,2.88,187.93,187.86,3.01]
[1755310752484,4.16274416,187.92,187.86,3.01]
[1755310752684,2.88,187.9,187.86,3.01]
[1755310753886,2.88,187.89,187.87,3.01]
[1755310754083,2.88,187.89,187.88,3.01]
[1755310755581,2.88,187.89,187.86,3.01]
[1755310755890,2.88,187.89,187.87,3.01]
[1755310758589,3.09,187.93,187.87,3.01]
[1755310758884,3.09,187.91,187.88,2.87]
[1755310759088,3.09,187.89,187.88,2.87]
[1755310759388,3.09,187.93,187.88,2.87]
[1755310759591,3.09,187.91,187.86,2.87]
[1755310759786,4.16955771,187.9,187.86,2.87]
[1755310759987,4.46789061,187.94,187.86,2.87]
[1755310760187,3.09,187.87,187.86,2.87]
[1755310773397,3.09,187.87,187.82,2.52161406]
[1755310773600,3.09,187.87,187.83,2.87]
[1755310775102,3.09,187.91,187.83,2.87]
[1755310775401,3.09,187.89,187.83,2.87]
[1755310775600,3.09,187.87,187.83,2.87]
[1755310776503,3.09,187.87,187.8,2.87]
[1755310776703,4.20391055,187.86,187.8,2.87]
[1755310776906,4.20391055,187.85,187.8,2.87]
[1755310777202,3.09,187.84,187.8,2.87]
[1755310778404,4.26079926,187.83,187.77,2.87]
[1755310778599,4.47388245,187.87,187.77,2.87]
[1755310778600,3.09,187.82,187.77,2.87]
[1755310788112,6.99549651,187.89,187.77,2.87]
[1755310788314,3.09,187.81,187.77,2.87]
[1755310788809,6.99549651,187.89,187.77,2.87]
[1755310789014,2.94,187.8,187.77,2.87]
[1755310790415,2.94,187.79,187.75,2.52161406]
[1755310790712,2.94,187.78,187.75,2.95]
[1755310790907,2.94,187.87,187.75,2.95]
[1755310791113,2.94,187.85,187.76,2.95]
[1755310791416,2.94,187.82,187.78,2.95]
[1755310792112,2.94,187.86,187.78,2.95]
[1755310792510,2.94,187.86,187.79,5.3207]
[1755310792814,2.94,187.86,187.8,2.95]
[1755310794915,2.94,187.84,187.8,2.95]
[1755310800515,2.94,187.84,187.75,5.3219]
[1755310800719,2.94,187.84,187.76,2.95]
[1755310801219,2.94,187.82,187.76,2.95]
[1755310802726,2.94,187.8,187.75,2.95]
[1755310804013,2.52161406,187.83,187.76,2.95]
[1755310804221,2.94,187.79,187.76,2.95]
[1755310804423,2.94,187.79,187.73,2.95]
[1755310807625,2.52161406,187.83,187.73,8.2723]
[1755310807822,2.94,187.81,187.76,2.95]
[1755310809027,2.94,187.87,187.76,2.95]
[1755310809225,4.21742211,187.86,187.76,2.95]
[1755310809429,4.21742211,187.85,187.76,2.95]
[1755310809616,2.94,187.83,187.76,2.95]
[1755310810124,2.94,187.83,187.76,8.2717]
[1755310810316,2.94,187.83,187.77,2.95]
[1755310811023,2.94,187.83,187.79,2.95]
[1755310811219,2.94,187.85,187.8,5.3204]
[1755310811421,2.94,187.85,187.82,2.95]
[1755310811627,2.94,187.91,187.82,2.95]
[1755310811823,2.94,187.89,187.84,5.47161406]
[1755310812027,2.94,187.88,187.85,2.95]
[1755310812223,2.94,187.87,187.85,2.95]
[1755310812625,4.47388245,187.94,187.84,2.52161406]
[1755310812825,2.94,187.86,187.84,2.52161406]
[1755310813229,2.94,187.86,187.85,2.95]
[1755310814230,2.94,187.87,187.85,2.95]
[1755310815132,2.94,187.93,187.85,2.95]
[1755310815430,2.94,187.91,187.85,2.95]
[1755310815631,2.94,187.89,187.85,2.95]
[1755310815826,4.21849499,187.9,187.85,2.95]
[1755310815827,2.94,187.88,187.85,2.95]
[1755310816733,2.94,187.93,187.85,2.95]
[1755310816928,2.94,187.91,187.85,2.95]
[1755310817138,2.94,187.89,187.85,2.95]
[1755310817528,4.47388245,187.94,187.85,2.95]
[1755310817724,2.94,187.88,187.85,2.95]
[1755310818030,2.94,187.87,187.85,2.95]
[1755310819734,2.88,187.93,187.85,2.52161406]
[1755310819934,4.22336393,187.92,187.86,3.04]
[1755310820124,7.10336393,187.91,187.86,3.04]
[1755310820330,2.88,187.89,187.86,3.04]
[1755310820526,2.88,187.89,187.78,3.04]
[1755310820724,2.88,187.89,187.77,99.0]
[1755310820725,2.88,187.89,187.81,3.04]
[1755310821331,4.23825253,187.88,187.81,3.04]
[1755310821531,2.88,187.89,187.81,3.04]
[1755310821727,4.23825253,187.88,187.81,3.04]
[1755310821924,2.88,187.87,187.81,3.04]
[1755310828142,4.23819288,187.86,187.81,3.04]
[1755310828342,2.88,187.87,187.81,3.04]
[1755310828537,2.88,187.85,187.81,3.04]
[1755310828741,2.88,187.85,187.78,3.04]
[1755310829042,2.88,187.83,187.76,3.04]
[1755310829240,4.23851172,187.82,187.76,3.04]
[1755310829452,2.88,187.8,187.77,3.04]
[1755310830339,2.88,187.8,187.71,7.84451406]
[1755310830642,2.88,187.8,187.72,5.3227]
[1755310830942,2.88,187.8,187.73,3.04]
[1755310835543,2.88,187.78,187.71,2.52161406]
[1755310835744,2.88,187.78,187.74,3.04]
[1755310836138,2.88,187.78,187.71,2.52161406]
[1755310836339,4.28683643,187.77,187.7,3.04]
[1755310836642,2.88,187.79,187.7,3.04]
[1755310836847,2.88,187.77,187.7,3.04]
[1755310840152,4.28417971,187.76,187.68,3.04]
[1755310840356,2.88,187.74,187.68,3.04]
[1755310843759,2.88,187.74,187.63,7.84681406]
[1755310843958,2.88,187.74,187.66,3.04]
[1755310845166,2.88,187.74,187.66,2.52161406]
[1755310845364,2.88,187.74,187.67,3.04]
[1755310846261,2.88,187.74,187.68,5.3237]
[1755310846462,2.88,187.73,187.69,3.04]
[1755310847266,2.88,187.75,187.7,3.04]
[1755310847667,2.88,187.74,187.7,3.04]
[1755310847864,2.88,187.79,187.7,3.04]
[1755310854073,2.88,187.79,187.71,2.83]
[1755310858176,4.28245043,187.78,187.71,2.83]
[1755310858477,2.92,187.77,187.71,2.83]
[1755310860178,2.92,187.76,187.71,2.83]
[1755310860379,2.92,187.74,187.71,2.83]
[1755310860777,130.48,187.77,187.71,2.83]
[1755310860978,130.48,187.77,187.67,5.3241]
[1755310860979,2.92,187.72,187.67,7.84571406]
[1755310861666,2.92,187.72,187.68,2.83]
[1755310863580,2.92,187.74,187.68,2.83]
[1755310863879,2.92,187.74,187.68,8.1539]
[1755310864174,2.92,187.74,187.69,2.83]
[1755310865076,2.92,187.76,187.7,5.3234]
[1755310865271,2.92,187.76,187.71,2.83]
[1755310865576,2.92,187.74,187.71,2.83]
[1755310865976,2.92,187.76,187.71,2.83]
[1755310866680,2.92,187.76,187.67,7.84581406]
[1755310866877,2.92,187.76,187.68,2.83]
[1755310867578,2.92,187.76,187.69,2.83]
[1755310869179,4.29838387,187.75,187.69,2.83]
[1755310869380,2.92,187.76,187.69,2.83]
[1755310869577,2.92,187.74,187.69,2.83]
[1755310872283,2.92,187.72,187.68,2.83]
[1755310872483,4.3067353,187.71,187.68,2.83]
[1755310872684,2.92,187.7,187.68,2.83]
[1755310874180,2.92,187.7,187.63,2.83]
[1755310875681,2.92,187.7,187.63,8.1552]
[1755310875880,2.92,187.7,187.64,2.83]
[1755310880288,4.31233748,187.69,187.64,2.83]
[1755310880480,2.52161406,187.73,187.64,2.83]
[1755310880685,3.04,187.67,187.64,2.83]
[1755310881787,3.04,187.69,187.64,2.83]
[1755310881988,3.04,187.68,187.64,2.83]
[1755310882889,3.04,187.72,187.67,2.52161406]
[1755310883095,4.34852481,187.71,187.68,2.96]
[1755310883292,3.04,187.74,187.68,8.2839]
[1755310883587,3.04,187.74,187.67,2.52161406]
[1755310883588,7.38869055,187.73,187.69,2.96]
[1755310883784,3.04,187.73,187.69,2.96]
[1755310883986,3.04,187.72,187.69,2.96]
[1755310885187,3.04,187.76,187.7,2.96]
[1755310885389,7.3881427,187.75,187.71,2.96]
[1755310885593,4.3481427,187.74,187.71,2.96]
[1755310885785,3.04,187.74,187.71,2.96]
[1755310885988,3.04,187.73,187.71,2.96]
[1755310887198,4.47665943,187.78,187.67,2.52161406]
[1755310887394,3.04,187.76,187.67,2.52161406]
[1755310887593,3.04,187.74,187.67,2.52161406]
[1755310887792,3.04,187.74,187.68,5.3239]
[1755310887991,3.04,187.74,187.69,2.96]
[1755310888395,3.04,187.73,187.69,2.96]
[1755310889691,3.04,187.73,187.69,8.2836]
[1755310889893,3.04,187.73,187.7,2.96]
[1755310890398,4.47665943,187.78,187.7,2.96]
[1755310890597,3.04,187.76,187.68,2.96]
[1755310890789,4.34817794,187.75,187.68,2.96]
[1755310890995,3.04,187.73,187.69,2.96]
[1755310891294,3.04,187.73,187.7,2.96]
[1755310891595,4.3482476,187.72,187.7,2.96]
[1755310891791,3.04,187.71,187.66,2.96]
[1755310891992,4.34865589,187.7,187.65,2.96]
[1755310892187,3.04,187.69,187.65,2.96]
[1755310892391,3.04,187.68,187.65,2.96]
[1755310892591,3.04,187.68,187.61,2.52161406]
[1755310892792,4.34848879,187.67,187.57,5.48161406]
[1755310892995,3.04,187.65,187.58,2.96]
[1755310893201,3.04,187.63,187.58,2.96]
[1755310893398,3.04,187.62,187.58,2.96]
[1755310894891,4.47665943,187.69,187.58,2.96]
[1755310895188,3.04,187.61,187.58,2.96]
[1755310895593,3.04,187.69,187.58,2.96]
[1755310895796,3.04,187.67,187.58,2.96]
[1755310895994,3.04,187.65,187.58,2.96]
[1755310902200,3.04,187.65,187.59,2.52161406]
[1755310902396,3.04,187.67,187.62,2.52161406]
[1755310902599,3.04,187.69,187.65,2.52161406]
[1755310902900,3.04,187.71,187.68,2.96]
[1755310903301,3.04,187.7,187.68,2.96]
[1755310903696,3.04,187.72,187.68,2.96]
[1755310903895,3.04,187.71,187.68,2.96]
[1755310904799,3.04,187.7,187.68,2.96]
[1755310905107,3.04,187.7,187.69,2.96]
[1755310905807,4.47665943,187.77,187.66,5.3245]
[1755310905999,3.04,187.75,187.67,2.96]
[1755310906199,4.47665943,187.77,187.67,2.96]
[1755310906200,4.3399415,187.74,187.67,2.96]
[1755310906395,3.04,187.72,187.67,2.96]
[1755310907105,3.04,187.76,187.67,8.2841]
[1755310907406,3.04,187.74,187.68,5.48161406]
[1755310907600,6.99827349,187.79,187.69,8.2836]
[1755310907799,3.04,187.73,187.7,2.96]
[1755310908908,3.02,187.72,187.7,2.96]
[1755310909806,3.02,187.71,187.69,2.99]
[1755310910799,6.99827349,187.79,187.69,2.99]
[1755310910800,3.02,187.73,187.69,2.99]
[1755310911001,3.02,187.72,187.69,2.99]
[1755310913311,3.02,187.76,187.7,2.99]
[1755310913909,3.02,187.76,187.7,5.3232]
[1755310914109,3.02,187.75,187.71,2.99]
[1755310914414,4.47665943,187.81,187.71,2.99]
[1755310914710,3.02,187.74,187.71,2.99]
[1755310917316,4.47665943,187.81,187.71,2.52161406]
[1755310917517,3.02,187.76,187.72,2.99]
[1755310918017,3.02,187.76,187.71,2.52161406]
[1755310918018,488.1,187.82,187.74,2.99]
[1755310918214,3.02,187.8,187.74,2.99]
[1755310918409,4.33839971,187.79,187.74,2.99]
[1755310918611,3.02,187.77,187.74,2.99]
[1755310919822,3.02,187.76,187.74,2.99]
[1755310920315,3.02,187.81,187.74,7.84381406]
[1755310920516,3.02,187.81,187.75,2.99]
[1755310926428,3.02,187.81,187.73,2.99]
[1755310926725,3.02,187.79,187.73,2.99]
[1755310928023,3.02,187.79,187.68,2.52161406]
[1755310928223,3.02,187.79,187.71,2.99]
[1755310928825,4.33032885,187.78,187.69,2.99]
[1755310929030,3.02,187.77,187.69,2.99]
[1755310932438,3.02,187.75,187.69,2.99]
[1755310932637,3.02,187.75,187.66,2.99]
[1755310932942,3.02,187.73,187.66,2.99]
[1755310933142,4.33148545,187.72,187.62,2.52161406]
[1755310933337,3.02,187.71,187.64,2.99]
[1755310934345,4.3315251,187.7,187.64,2.99]
[1755310934647,3.02,187.69,187.64,2.99]
[1755310935545,3.02,187.69,187.62,2.99]
[1755310938038,4.33078121,187.68,187.62,2.99]
[1755310938240,3.02,187.67,187.62,2.99]
[1755310939448,3.02,187.67,187.6,2.9]
[1755310941947,3.02,187.67,187.6,8.2262]
[1755310942151,3.02,187.67,187.61,2.9]
[1755310943446,3.12,187.69,187.62,2.9]
[1755310946548,4.33233436,187.68,187.62,2.9]
[1755310946754,3.12,187.67,187.62,2.9]
[1755310946956,3.12,187.67,187.63,2.9]
[1755310948652,3.12,187.67,187.59,2.52161406]
[1755310948850,3.12,187.67,187.6,2.9]
[1755310949556,7.44791982,187.66,187.6,2.9]
[1755310949754,3.12,187.65,187.6,2.9]
[1755310950150,3.12,187.65,187.56,2.52161406]
[1755310950351,3.12,187.65,187.5,99.0]
[1755310950352,3.12,187.65,187.57,2.9]
[1755310952452,4.04781444,187.65,187.57,2.9]
[1755310952756,3.12,187.64,187.57,2.9]
[1755310957556,4.3170557,187.63,187.57,2.9]
[1755310957761,3.12,187.62,187.57,2.9]
[1755310957955,3.12,187.62,187.52,7.85001406]
[1755310958153,3.12,187.62,187.58,2.9]
[1755310958355,3.12,187.62,187.53,5.3282]
[1755310958552,3.12,187.62,187.54,2.9]
[1755310961959,3.12,187.62,187.49,99.0]
[1755310962262,3.12,187.6,187.52,2.9]
[1755310966662,4.31164323,187.59,187.52,2.9]
[1755310966867,3.12,187.58,187.52,2.9]
[1755310969467,3.0,187.6,187.52,2.9]
[1755310969666,4.31547798,187.59,187.52,2.9]
[1755310969965,3.0,187.6,187.53,3.11]
[1755310970162,4.31524941,187.59,187.53,3.11]
[1755310970465,3.0,187.57,187.53,3.11]
[1755310970965,3.0,187.61,187.53,3.11]
[1755310971265,3.0,187.59,187.53,3.11]
[1755310971461,4.31714731,187.58,187.53,3.11]
[1755310971658,4.31714731,187.57,187.53,3.11]
[1755310971861,3.0,187.57,187.53,3.11]
[1755310973172,4.43634767,187.61,187.53,3.11]
[1755310973370,3.0,187.59,187.53,3.11]
[1755310973669,4.32170084,187.58,187.53,3.11]
[1755310973859,4.32170084,187.57,187.53,3.11]
[1755310974063,3.0,187.58,187.53,3.11]
[1755310974259,4.32169936,187.57,187.53,3.11]
[1755310974464,4.32169936,187.56,187.53,3.11]
[1755310974664,3.0,187.57,187.53,3.11]
[1755310974860,4.32357756,187.56,187.53,3.11]
[1755310975066,3.0,187.57,187.53,3.11]
[1755310975371,4.32357756,187.56,187.53,3.11]
[1755310975566,3.0,187.57,187.53,3.11]
[1755310975871,4.3256382,187.56,187.53,3.11]
[1755310976067,3.0,187.56,187.53,3.11]
[1755310976666,3.0,187.59,187.53,3.11]
[1755310976873,4.32456103,187.58,187.53,3.11]
[1755310977175,3.0,187.56,187.53,3.11]
[1755310977470,3.0,187.54,187.5,3.11]
[1755310977974,4.43634767,187.58,187.5,3.11]
[1755310978171,3.0,187.53,187.5,3.11]
[1755310979171,3.0,187.57,187.5,3.11]
[1755310979372,4.32809552,187.56,187.5,3.11]
[1755310979571,4.32809552,187.55,187.5,3.11]
[1755310979876,7.32809552,187.54,187.5,3.11]
[1755310980171,3.0,187.54,187.5,3.11]
[1755310980567,3.0,187.58,187.52,2.52161406]
[1755310980767,3.0,187.58,187.53,3.11]
[1755310980768,4.32957842,187.57,187.53,3.11]
[1755310980966,4.32957842,187.56,187.53,3.11]
[1755310981169,3.0,187.59,187.53,3.11]
[1755310981472,3.0,187.56,187.53,3.11]
[1755310981672,3.0,187.55,187.53,3.11]
[1755310982274,4.43634767,187.6,187.53,3.11]
[1755310982275,3.0,187.59,187.53,3.11]
[1755310982475,3.0,187.57,187.53,3.11]
[1755310982678,4.33023827,187.56,187.53,3.11]
[1755310982976,3.0,187.56,187.53,3.11]
[1755310983577,4.43634767,187.61,187.53,3.11]
[1755310983778,3.0,187.55,187.53,3.11]
[1755310985378,3.0,187.54,187.52,2.52161406]
[1755310985980,3.0,187.54,187.53,3.11]
[1755310987879,4.43634767,187.62,187.53,3.11]
[1755310988083,3.0,187.6,187.53,3.11]
[1755310988282,3.0,187.58,187.53,3.11]
[1755310988679,3.0,187.57,187.53,3.11]
[1755310988986,3.0,187.59,187.53,3.11]
[1755310989191,3.0,187.59,187.54,5.3277]
[1755310989379,4.43634767,187.65,187.55,3.11]
[1755310989686,3.0,187.58,187.55,3.11]
[1755310990886,4.43634767,187.64,187.55,3.11]
[1755310991084,3.0,187.57,187.55,3.11]
[1755310991889,3.0,187.62,187.5,2.52161406]
[1755310992185,9.95796173,187.6,187.47,2.52161406]
[1755310992390,3.0,187.58,187.48,3.11]
[1755310992591,3.0,187.56,187.48,3.11]
[1755310992782,4.34198634,187.55,187.48,3.11]
[1755310993082,3.0,187.54,187.48,3.11]
[1755311001892,3.0,187.54,187.49,3.0]
[1755311002191,3.02,187.53,187.49,3.0]
[1755311002690,3.02,187.52,187.49,3.0]
[1755311002893,3.02,187.57,187.49,3.0]
[1755311003190,3.02,187.55,187.49,3.0]
[1755311003391,3.02,187.53,187.49,3.0]
[1755311004093,4.43634767,187.58,187.44,229.34]
[1755311004280,3.02,187.56,187.48,3.0]
[1755311004485,3.02,187.54,187.48,3.0]
[1755311004683,3.02,187.52,187.49,3.0]
[1755311006792,3.02,187.52,187.45,2.52161406]
[1755311006997,3.02,187.52,187.46,3.0]
[1755311008692,3.02,187.5,187.46,3.0]
[1755311008889,3.02,187.5,187.47,3.0]
[1755311010193,3.02,187.55,187.44,3.0]
[1755311010396,3.02,187.53,187.44,3.0]
[1755311010600,4.34221378,187.52,187.44,3.0]
[1755311010799,3.02,187.5,187.44,3.0]
[1755311011000,3.02,187.48,187.44,3.0]
[1755311011590,3.02,187.46,187.43,3.0]
[1755311012101,4.43634767,187.52,187.43,3.0]
[1755311012302,3.02,187.45,187.43,3.0]
[1755311012502,3.02,187.45,187.44,3.0]
[1755311012697,3.02,187.45,187.41,2.52161406]
[1755311012895,3.02,187.51,187.42,3.0]
[1755311013100,4.33591135,187.5,187.42,3.0]
[1755311013400,3.02,187.48,187.42,3.0]
[1755311014690,4.33320632,187.47,187.42,3.0]
[1755311014895,3.02,187.46,187.43,3.0]
[1755311015098,3.02,187.46,187.39,2.52161406]
[1755311015298,3.02,187.46,187.4,3.0]
[1755311020821,3.02,187.46,187.42,2.52161406]
[1755311021022,3.02,187.46,187.43,3.0]
[1755311021319,3.02,187.47,187.43,3.0]
[1755311021926,3.02,187.53,187.43,3.0]
[1755311022126,3.02,187.51,187.45,2.52161406]
[1755311022326,3.02,187.51,187.46,3.0]
[1755311023625,3.02,187.55,187.46,3.0]
[1755311023826,4.32410486,187.54,187.46,3.0]
[1755311024031,3.02,187.52,187.46,3.0]
[1755311024924,4.32342787,187.51,187.45,3.0]
[1755311025130,7.34324383,187.5,187.43,3.0]
[1755311025325,4.32324383,187.49,187.43,3.0]
[1755311025520,3.02,187.48,187.44,3.0]
[1755311025725,3.02,187.48,187.42,3.0]
[1755311028232,3.02,187.46,187.42,3.0]
[1755311031829,3.02,187.46,187.37,2.52161406]
[1755311031830,3.02,187.46,187.38,3.06]
[1755311032221,2.93,187.44,187.38,3.06]
[1755311037130,2.93,187.44,187.33,3.06]
[1755311037333,2.93,187.42,187.33,3.06]
[1755311037532,2.93,187.4,187.33,3.06]
[1755311040833,4.45135996,187.45,187.33,3.06]
[1755311041039,2.93,187.43,187.36,3.06]
[1755311043032,2.93,187.41,187.36,3.06]
[1755311043341,4.3236088,187.4,187.36,3.06]
[1755311043540,2.93,187.39,187.36,3.06]
[1755311045437,2.96631877,187.39,187.36,3.06]